[Event "MČR v rapid šachu družstev 2019"]
[Site "Teplice, Czech Republic"]
[Date "2019.09.15"]
[Round "1.16"]
[White "Ocelak, Jakub"]
[Black "Postupa, Pavel"]
[Result "0-1"]
[TimeControl "15 min. + 5s"]
[WhiteElo "1702"]
[BlackElo "2203"]

1. Nf3 {[%clk 00:15:06]} {[%emt 00:00:04]} Nf6 {[%clk 00:15:05]} {[%emt
00:00:06]} 2. g3 {[%clk 00:15:09]} {[%emt 00:00:03]} g6 {[%clk 00:15:07]}
{[%emt 00:00:03]} 3. Bg2 {[%clk 00:15:13]} {[%emt 00:00:01]} Bg7 {[%clk
00:15:11]} 4. O-O {[%clk 00:15:16]} {[%emt 00:00:02]} d5 {[%clk 00:15:15]} 5.
d4 {[%clk 00:15:20]} {[%emt 00:00:02]} O-O {[%clk 00:15:18]} {[%emt 00:00:02]}
6. c4 {[%clk 00:15:24]} {[%emt 00:00:01]} dxc4 {[%clk 00:15:11]} {[%emt
00:00:11]} 7. Na3 {[%clk 00:15:24]} {[%emt 00:00:05]} c5 {[%clk 00:13:46]}
{[%emt 00:01:30]} 8. Nxc4 {[%clk 00:12:42]} {[%emt 00:02:47]} Be6 {[%clk
00:12:23]} {[%emt 00:01:27]} 9. Nfe5 {[%clk 00:11:22]} {[%emt 00:01:25]} Nc6
{[%clk 00:08:56]} {[%emt 00:03:32]} 10. Nxc6 {[%clk 00:10:13]} {[%emt
00:01:14]} bxc6 {[%clk 00:08:54]} {[%emt 00:00:07]} 11. Ne5 {[%clk 00:08:16]}
{[%emt 00:02:02]} Rc8 {[%clk 00:07:58]} {[%emt 00:01:01]} 12. dxc5 {[%clk
00:06:33]} {[%emt 00:01:48]} Nd5 {[%clk 00:07:48]} {[%emt 00:00:15]} 13. Nd3
{[%clk 00:06:14]} {[%emt 00:00:25]} Qa5 {[%clk 00:06:57]} {[%emt 00:00:55]} 14.
a3 {[%clk 00:04:51]} {[%emt 00:01:28]} Rfd8 {[%clk 00:06:49]} {[%emt 00:00:12]}
15. Qc2 {[%clk 00:04:24]} {[%emt 00:00:33]} Qb5 {[%clk 00:06:23]} {[%emt
00:00:29]} 16. Rb1 {[%clk 00:02:46]} {[%emt 00:01:45]} Nf6 {[%clk 00:06:22]}
{[%emt 00:00:06]} 17. b4 {[%clk 00:02:31]} {[%emt 00:00:20]} Bf5 {[%clk
00:05:45]} {[%emt 00:00:42]} 18. Rd1 {[%clk 00:02:22]} {[%emt 00:00:15]} Rd4
{[%clk 00:01:32]} {[%emt 00:04:18]} 19. Be3 {[%clk 00:01:53]} {[%emt 00:00:34]}
Rc4 {[%clk 00:01:30]} {[%emt 00:00:06]} 20. Qb3 {[%clk 00:01:53]} {[%emt
00:00:05]} Be6 {[%clk 00:01:24]} {[%emt 00:00:11]} 21. a4 {[%clk 00:01:28]}
{[%emt 00:00:30]} Qb8 {[%clk 00:01:28]} {[%emt 00:00:01]} 22. Qa3 {[%clk
00:01:31]} {[%emt 00:00:02]} Nd5 {[%clk 00:01:09]} {[%emt 00:00:24]} 23. Bf4
{[%clk 00:01:13]} {[%emt 00:00:23]} Nxf4 {[%clk 00:01:01]} {[%emt 00:00:13]} 24.
Nxf4 {[%clk 00:01:10]} {[%emt 00:00:08]} Rc3 {[%clk 00:00:54]} {[%emt
00:00:12]} 25. Qb2 {[%clk 00:00:44]} {[%emt 00:00:31]} Rxg3 {[%clk 00:00:53]}
{[%emt 00:00:06]} 26. Qxg7+ {[%emt 00:00:19]} Kxg7 {[%clk 00:00:55]} {[%emt
00:00:03]} 27. Nxe6+ {[%clk 00:00:32]} {[%emt 00:00:03]} fxe6 {[%clk 00:00:58]}
{[%emt 00:00:02]} 28. hxg3 {[%clk 00:00:36]} {[%emt 00:00:01]} Kf7 {[%clk
00:00:52]} {[%emt 00:00:10]} 29. Rdc1 {[%clk 00:00:39]} {[%emt 00:00:02]} Qe5
{[%clk 00:00:52]} {[%emt 00:00:05]} 30. e3 {[%clk 00:00:28]} {[%emt 00:00:16]}
h5 {[%clk 00:00:55]} {[%emt 00:00:01]} 31. b5 {[%clk 00:00:25]} {[%emt
00:00:08]} cxb5 {[%clk 00:00:58]} {[%emt 00:00:02]} 32. Rxb5 {[%clk 00:00:29]}
{[%emt 00:00:01]} a6 {[%clk 00:01:01]} {[%emt 00:00:02]} 33. Rb6 {[%clk
00:00:20]} {[%emt 00:00:14]} h4 {[%clk 00:00:23]} {[%emt 00:00:43]} 34. gxh4
{[%clk 00:00:13]} {[%emt 00:00:12]} g5 {[%clk 00:00:22]} {[%emt 00:00:06]} 35.
Bh3 {[%clk 00:00:10]} {[%emt 00:00:09]} g4 {[%clk 00:00:20]} {[%emt 00:00:07]}
36. Bg2 {[%clk 00:00:13]} {[%emt 00:00:02]} g3 {[%clk 00:00:18]} {[%emt
00:00:06]} 37. c6 {[%clk 00:00:10]} {[%emt 00:00:08]} gxf2+ {[%clk 00:00:21]}
{[%emt 00:00:02]} 38. Kxf2 {[%clk 00:00:14]} Rg8 {[%clk 00:00:13]} {[%emt
00:00:14]} 39. c7 {[%clk 00:00:09]} {[%emt 00:00:09]} Qg3+ {[%clk 00:00:17]} 40.
Ke2 {[%clk 00:00:11]} {[%emt 00:00:04]} Qxg2+ {[%emt 00:00:01]} 41. Kd3 {[%clk
00:00:15]} Qd5+ {[%clk 00:00:24]} {[%emt 00:00:02]} 42. Kc2 {[%clk 00:00:07]}
{[%emt 00:00:13]} Qc5+ {[%clk 00:00:21]} {[%emt 00:00:08]} 43. Kd3 {[%clk
00:00:10]} {[%emt 00:00:03]} Qxb6 {[%clk 00:00:23]} {[%emt 00:00:03]} 44. c8=Q
{[%clk 00:00:12]} {[%emt 00:00:02]} Rxc8 {[%clk 00:00:27]} {[%emt 00:00:01]} 45.
Rxc8 {[%clk 00:00:16]} {[%emt 00:00:01]} Qb3+ {[%clk 00:00:28]} {[%emt
00:00:03]} 46. Kd4 {[%clk 00:00:16]} {[%emt 00:00:06]} Qxa4+ {[%clk 00:00:31]}
{[%emt 00:00:01]} 47. Rc4 {[%clk 00:00:20]} {[%emt 00:00:01]} Qd1+ {[%clk
00:00:34]} {[%emt 00:00:02]} 48. Ke4 {[%clk 00:00:23]} {[%emt 00:00:02]} Qd5+
{[%clk 00:00:38]} {[%emt 00:00:02]} 0-1

[Event "MČR v rapid šachu družstev 2019"]
[Site "Teplice, Czech Republic"]
[Date "2019.09.15"]
[Round "1.17"]
[White "Mikes, Jan"]
[Black "Kourousis, Epaminondas"]
[Result "1-0"]
[TimeControl "15 min. + 5s"]
[WhiteElo "2214"]
[BlackElo "2388"]

1. e4 {[%clk 00:15:08]} {[%emt 00:00:01]} c6 {[%clk 00:15:06]} {[%emt
00:00:05]} 2. d4 {[%clk 00:15:10]} {[%emt 00:00:02]} d5 {[%clk 00:15:10]} 3. e5
{[%clk 00:15:14]} {[%emt 00:00:02]} Bf5 {[%clk 00:15:13]} 4. h4 {[%clk
00:15:18]} {[%emt 00:00:01]} h5 {[%clk 00:15:07]} {[%emt 00:00:11]} 5. Bd3
{[%clk 00:15:22]} {[%emt 00:00:01]} Bxd3 {[%clk 00:15:09]} {[%emt 00:00:03]} 6.
Qxd3 {[%clk 00:15:26]} {[%emt 00:00:01]} e6 {[%clk 00:15:13]} {[%emt 00:00:01]}
7. Bg5 {[%clk 00:15:30]} Qa5+ {[%clk 00:15:06]} {[%emt 00:00:12]} 8. Nd2 {[%clk
00:15:33]} {[%emt 00:00:02]} Qa6 {[%clk 00:15:10]} {[%emt 00:00:01]} 9. c4
{[%clk 00:15:38]} dxc4 {[%clk 00:14:34]} {[%emt 00:00:41]} 10. Qxc4 {[%clk
00:14:35]} {[%emt 00:01:08]} Ne7 {[%clk 00:13:53]} {[%emt 00:00:46]} 11. Ne2
{[%clk 00:12:47]} {[%emt 00:01:53]} Nf5 {[%clk 00:13:14]} {[%emt 00:00:43]} 12.
Rh3 {[%clk 00:12:23]} {[%emt 00:00:30]} Qxc4 {[%clk 00:10:13]} {[%emt
00:03:06]} 13. Nxc4 {[%clk 00:12:27]} {[%emt 00:00:01]} Nd7 {[%clk 00:06:06]}
{[%emt 00:04:12]} 14. O-O-O {[%clk 00:11:09]} {[%emt 00:01:23]} Be7 {[%clk
00:05:30]} {[%emt 00:00:41]} 15. Bxe7 {[%clk 00:10:41]} {[%emt 00:00:32]} Kxe7
{[%clk 00:05:27]} {[%emt 00:00:08]} 16. Nc3 {[%clk 00:10:35]} {[%emt 00:00:12]}
Nb6 {[%clk 00:05:18]} {[%emt 00:00:14]} 17. Na5 {[%clk 00:09:10]} {[%emt
00:01:30]} Rab8 {[%clk 00:05:23]} {[%emt 00:00:01]} 18. Ne4 {[%clk 00:08:59]}
{[%emt 00:00:15]} Rhd8 {[%clk 00:02:38]} {[%emt 00:02:50]} 19. Nc5 {[%clk
00:09:03]} Nxd4 {[%clk 00:01:34]} {[%emt 00:01:10]} 20. Ncxb7 {[%clk 00:09:04]}
{[%emt 00:00:03]} Rbc8 {[%clk 00:00:48]} {[%emt 00:00:51]} 1-0

[Event "MČR v rapid šachu družstev 2019"]
[Site "Teplice, Czech Republic"]
[Date "2019.09.15"]
[Round "1.18"]
[White "Burdalev, Kirill"]
[Black "Pribyl, Jakub"]
[Result "1/2-1/2"]
[TimeControl "15 min. + 5s"]
[WhiteElo "2336"]
[BlackElo "2063"]

1. d4 {[%clk 00:15:08]} {[%emt 00:00:01]} Nf6 {[%clk 00:15:03]} {[%emt
00:00:08]} 2. Nf3 {[%clk 00:15:12]} {[%emt 00:00:01]} g6 {[%clk 00:15:03]}
{[%emt 00:00:05]} 3. g3 {[%clk 00:15:15]} {[%emt 00:00:02]} Bg7 {[%clk
00:15:07]} 4. c4 {[%clk 00:15:20]} {[%emt 00:00:01]} O-O {[%clk 00:15:09]}
{[%emt 00:00:03]} 5. Bg2 {[%clk 00:15:24]} {[%emt 00:00:01]} d6 {[%clk
00:15:13]} 6. O-O {[%clk 00:15:28]} {[%emt 00:00:02]} c6 {[%clk 00:15:15]}
{[%emt 00:00:02]} 7. Nc3 {[%clk 00:15:32]} {[%emt 00:00:02]} Nbd7 {[%clk
00:15:16]} {[%emt 00:00:03]} 8. e4 {[%clk 00:15:36]} {[%emt 00:00:01]} Qc7
{[%clk 00:15:13]} {[%emt 00:00:07]} 9. h3 {[%clk 00:15:40]} {[%emt 00:00:02]}
e5 {[%clk 00:15:14]} {[%emt 00:00:03]} 10. Be3 {[%clk 00:15:44]} b6 {[%clk
00:15:15]} {[%emt 00:00:04]} 11. Rc1 {[%clk 00:15:46]} {[%emt 00:00:04]} Bb7
{[%clk 00:15:19]} 12. d5 {[%clk 00:15:25]} {[%emt 00:00:25]} a6 {[%clk
00:14:46]} {[%emt 00:00:39]} 13. dxc6 {[%clk 00:15:29]} {[%emt 00:00:01]} Bxc6
{[%clk 00:14:49]} {[%emt 00:00:02]} 14. Nd5 {[%clk 00:15:33]} {[%emt 00:00:01]}
Bxd5 {[%clk 00:13:28]} {[%emt 00:01:25]} 15. cxd5 {[%clk 00:15:37]} {[%emt
00:00:02]} Qb7 {[%clk 00:13:12]} {[%emt 00:00:21]} 16. Nd2 {[%clk 00:15:41]}
{[%emt 00:00:01]} Rfc8 {[%clk 00:12:03]} {[%emt 00:01:13]} 17. Nc4 {[%clk
00:15:44]} {[%emt 00:00:02]} Bf8 {[%clk 00:11:47]} {[%emt 00:00:21]} 18. Qb3
{[%clk 00:15:48]} {[%emt 00:00:02]} b5 {[%clk 00:10:41]} {[%emt 00:01:11]} 19.
Na5 {[%clk 00:15:52]} {[%emt 00:00:01]} Qb8 {[%clk 00:10:19]} {[%emt 00:00:26]}
20. Rxc8 {[%clk 00:12:46]} {[%emt 00:03:11]} Qxc8 {[%clk 00:10:15]} {[%emt
00:00:10]} 21. Rc1 {[%clk 00:12:50]} {[%emt 00:00:01]} Qb8 {[%clk 00:07:09]}
{[%emt 00:03:11]} 22. Rc6 {[%clk 00:12:21]} {[%emt 00:00:34]} Ne8 {[%clk
00:04:29]} {[%emt 00:02:45]} 23. Qc2 {[%clk 00:12:05]} {[%emt 00:00:21]} Qd8
{[%clk 00:03:21]} {[%emt 00:01:13]} 24. b4 {[%clk 00:11:54]} {[%emt 00:00:16]}
Nc5 {[%clk 00:02:48]} {[%emt 00:00:38]} 25. Bxc5 {[%clk 00:10:53]} {[%emt
00:01:06]} dxc5 {[%clk 00:02:43]} {[%emt 00:00:09]} 26. Nb7 {[%clk 00:10:56]}
{[%emt 00:00:02]} Qe7 {[%clk 00:02:19]} {[%emt 00:00:30]} 27. Nxc5 {[%clk
00:10:54]} {[%emt 00:00:06]} Nd6 {[%clk 00:02:17]} {[%emt 00:00:07]} 28. Rxa6
{[%clk 00:10:12]} {[%emt 00:00:46]} Rxa6 {[%clk 00:01:36]} {[%emt 00:00:47]} 29.
Nxa6 {[%clk 00:10:14]} {[%emt 00:00:03]} Qa7 {[%clk 00:01:38]} {[%emt
00:00:03]} 30. Nc5 {[%clk 00:09:37]} {[%emt 00:00:42]} Qa3 {[%clk 00:01:33]}
{[%emt 00:00:10]} 31. Nd3 {[%clk 00:08:50]} {[%emt 00:00:53]} Nc4 {[%clk
00:01:16]} {[%emt 00:00:22]} 32. Qb3 {[%clk 00:08:46]} {[%emt 00:00:09]} Qa7
{[%clk 00:00:47]} {[%emt 00:00:34]} 33. Qc2 {[%clk 00:05:57]} {[%emt 00:02:54]}
Qd4 {[%clk 00:00:45]} {[%emt 00:00:11]} 34. h4 {[%clk 00:05:44]} {[%emt
00:00:24]} h5 {[%clk 00:00:40]} {[%emt 00:00:10]} 35. Bf3 {[%clk 00:05:37]}
{[%emt 00:00:12]} Be7 {[%clk 00:00:28]} {[%emt 00:00:17]} 36. Kg2 {[%clk
00:05:40]} {[%emt 00:00:02]} Kg7 {[%clk 00:00:31]} {[%emt 00:00:02]} 37. Qd1
{[%clk 00:04:31]} {[%emt 00:01:13]} Qc3 {[%clk 00:00:18]} {[%emt 00:00:18]} 38.
Be2 {[%clk 00:03:41]} {[%emt 00:00:56]} Bd6 {[%clk 00:00:17]} {[%emt 00:00:06]}
39. Ne1 {[%clk 00:02:09]} {[%emt 00:01:37]} Nd2 {[%clk 00:00:08]} {[%emt
00:00:14]} 40. Qc2 {[%clk 00:01:46]} {[%emt 00:00:28]} Qd4 {[%clk 00:00:11]}
{[%emt 00:00:02]} 41. Nf3 {[%clk 00:01:33]} {[%emt 00:00:19]} Nxf3 {[%emt
00:00:02]} 42. Kxf3 {[%clk 00:01:30]} {[%emt 00:00:07]} Qxb4 {[%clk 00:00:18]}
43. Qd3 {[%clk 00:01:28]} {[%emt 00:00:06]} Qb2 {[%clk 00:00:16]} {[%emt
00:00:08]} 44. Qxb5 {[%clk 00:00:45]} {[%emt 00:00:48]} Qxa2 {[%clk 00:00:19]}
{[%emt 00:00:02]} 45. Qc4 {[%clk 00:00:18]} {[%emt 00:00:32]} Qa3+ {[%clk
00:00:17]} {[%emt 00:00:07]} 46. Bd3 {[%clk 00:00:20]} {[%emt 00:00:02]} Qb2
{[%clk 00:00:12]} {[%emt 00:00:10]} 47. Kg2 {[%clk 00:00:22]} {[%emt 00:00:04]}
Qb6 {[%clk 00:00:14]} {[%emt 00:00:03]} 48. Qc2 {[%clk 00:00:21]} {[%emt
00:00:05]} Qd4 {[%clk 00:00:13]} {[%emt 00:00:06]} 49. Be2 {[%clk 00:00:22]}
{[%emt 00:00:04]} Bc5 {[%clk 00:00:15]} {[%emt 00:00:04]} 50. Bb5 {[%clk
00:00:25]} {[%emt 00:00:02]} Bd6 {[%clk 00:00:17]} {[%emt 00:00:03]} 51. Qd3
{[%clk 00:00:16]} {[%emt 00:00:14]} Qxd3 {[%clk 00:00:17]} {[%emt 00:00:04]} 52.
Bxd3 {[%clk 00:00:20]} {[%emt 00:00:01]} Kf8 {[%clk 00:00:21]} {[%emt
00:00:02]} 53. Kf1 {[%clk 00:00:24]} {[%emt 00:00:01]} Ke7 {[%clk 00:00:25]} 54.
Ke2 {[%clk 00:00:27]} {[%emt 00:00:02]} Bc5 {[%clk 00:00:29]} {[%emt 00:00:02]}
55. f4 {[%clk 00:00:30]} {[%emt 00:00:02]} Bd4 {[%clk 00:00:33]} {[%emt
00:00:06]} 56. Kf3 {[%clk 00:00:36]} {[%emt 00:00:03]} Bc3 {[%clk 00:00:29]}
{[%emt 00:00:09]} 57. Bc4 {[%clk 00:00:39]} {[%emt 00:00:02]} Kd6 {[%clk
00:00:30]} {[%emt 00:00:05]} 58. Bb5 {[%clk 00:00:43]} Ke7 {[%clk 00:00:34]}
{[%emt 00:00:01]} 59. Ba4 {[%clk 00:00:46]} {[%emt 00:00:02]} Kd6 {[%clk
00:00:38]} 60. Bb3 {[%clk 00:00:49]} {[%emt 00:00:02]} Ke7 {[%clk 00:00:42]}
{[%emt 00:00:01]} 61. d6+ {[%clk 00:00:50]} {[%emt 00:00:04]} Kf8 {[%clk
00:00:28]} {[%emt 00:00:19]} 62. d7 {[%clk 00:00:50]} {[%emt 00:00:05]} Ba5
{[%clk 00:00:29]} {[%emt 00:00:04]} 63. fxe5 {[%clk 00:00:51]} {[%emt
00:00:03]} Ke7 {[%clk 00:00:28]} {[%emt 00:00:06]} 64. Ba4 {[%clk 00:00:30]}
{[%emt 00:00:26]} f6 {[%clk 00:00:19]} {[%emt 00:00:15]} 65. exf6+ {[%clk
00:00:23]} {[%emt 00:00:12]} Kxf6 {[%clk 00:00:22]} {[%emt 00:00:01]} 66. Bb3
{[%clk 00:00:25]} {[%emt 00:00:03]} Bc7 {[%clk 00:00:23]} {[%emt 00:00:04]} 67.
Bg8 {[%clk 00:00:21]} {[%emt 00:00:09]} Kg7 {[%clk 00:00:23]} {[%emt 00:00:05]}
68. Be6 {[%clk 00:00:17]} {[%emt 00:00:10]} Kf6 {[%clk 00:00:25]} {[%emt
00:00:03]} 69. Bh3 {[%clk 00:00:16]} {[%emt 00:00:05]} Ke5 {[%clk 00:00:22]}
{[%emt 00:00:08]} 70. Ke3 {[%clk 00:00:11]} {[%emt 00:00:10]} Bb6+ {[%clk
00:00:20]} {[%emt 00:00:08]} 71. Kd3 {[%clk 00:00:16]} Bc7 {[%clk 00:00:21]}
{[%emt 00:00:04]} 72. Bg2 {[%clk 00:00:17]} {[%emt 00:00:04]} Ke6 {[%clk
00:00:20]} {[%emt 00:00:06]} 73. Bh3+ {[%clk 00:00:19]} {[%emt 00:00:03]} Ke5
{[%clk 00:00:24]} 74. Bg2 {[%clk 00:00:23]} {[%emt 00:00:01]} Ke6 {[%clk
00:00:24]} 75. Bh3+ {[%clk 00:00:08]} {[%emt 00:00:24]} Ke7 {[%clk 00:00:29]}
76. Kd4 {[%clk 00:00:11]} {[%emt 00:00:02]} Bxg3 {[%clk 00:00:31]} {[%emt
00:00:02]} 77. e5 {[%clk 00:00:14]} {[%emt 00:00:02]} Bxh4 {[%clk 00:00:33]}
{[%emt 00:00:03]} 78. Kd5 {[%clk 00:00:18]} Kd8 {[%clk 00:00:36]} {[%emt
00:00:02]} 79. e6 {[%clk 00:00:22]} {[%emt 00:00:02]} Be7 {[%emt 00:00:06]} 80.
Ke5 {[%clk 00:00:26]} g5 {[%clk 00:00:37]} {[%emt 00:00:04]} 81. Kf5 {[%clk
00:00:30]} g4 {[%clk 00:00:41]} {[%emt 00:00:01]} 82. Bg2 {[%clk 00:00:33]}
{[%emt 00:00:02]} Kc7 {[%clk 00:00:42]} {[%emt 00:00:03]} 83. Bf1 {[%clk
00:00:17]} {[%emt 00:00:22]} g3 {[%clk 00:00:31]} {[%emt 00:00:15]} 84. Kf4
{[%clk 00:00:11]} {[%emt 00:00:11]} h4 {[%clk 00:00:34]} {[%emt 00:00:03]} 85.
Kg4 {[%clk 00:00:13]} {[%emt 00:00:03]} Kd8 {[%clk 00:00:36]} {[%emt 00:00:03]}
1/2-1/2

[Event "MČR v rapid šachu družstev 2019"]
[Site "Teplice, Czech Republic"]
[Date "2019.09.15"]
[Round "1.19"]
[White "Polansky, Adam Lubos"]
[Black "Pribyl, Josef"]
[Result "0-1"]
[TimeControl "15 min. + 5s"]
[WhiteElo "1728"]
[BlackElo "2285"]

1. d4 {[%clk 00:15:07]} {[%emt 00:00:03]} Nf6 {[%clk 00:15:09]} {[%emt
00:00:02]} 2. c4 {[%clk 00:15:10]} {[%emt 00:00:02]} g6 {[%clk 00:15:13]} 3. g3
{[%clk 00:15:13]} {[%emt 00:00:02]} Bg7 {[%clk 00:15:17]} {[%emt 00:00:02]} 4.
Bg2 {[%clk 00:15:16]} d5 {[%clk 00:15:21]} 5. Nf3 {[%clk 00:15:10]} {[%emt
00:00:12]} O-O {[%clk 00:15:24]} {[%emt 00:00:02]} 6. O-O {[%clk 00:15:13]}
{[%emt 00:00:02]} dxc4 {[%clk 00:15:28]} 7. Na3 {[%clk 00:15:17]} {[%emt
00:00:02]} Nc6 {[%clk 00:15:30]} {[%emt 00:00:03]} 8. Nxc4 {[%clk 00:15:15]}
{[%emt 00:00:06]} Be6 {[%clk 00:15:34]} 9. Nce5 {[%clk 00:13:22]} {[%emt
00:01:59]} Nxe5 {[%clk 00:15:35]} {[%emt 00:00:03]} 10. Nxe5 {[%clk 00:13:26]}
{[%emt 00:00:02]} Bd5 {[%clk 00:15:38]} {[%emt 00:00:02]} 11. f3 {[%clk
00:12:27]} {[%emt 00:01:05]} Qc8 {[%clk 00:15:41]} 12. e4 {[%clk 00:12:21]}
{[%emt 00:00:10]} Be6 {[%clk 00:15:45]} {[%emt 00:00:02]} 13. Be3 {[%clk
00:11:46]} {[%emt 00:00:40]} c6 {[%clk 00:15:48]} {[%emt 00:00:02]} 14. Rf2
{[%clk 00:11:00]} {[%emt 00:00:51]} Rd8 {[%clk 00:15:48]} {[%emt 00:00:05]} 15.
Rd2 {[%clk 00:11:03]} {[%emt 00:00:01]} Nd7 {[%clk 00:15:39]} {[%emt 00:00:15]}
16. Nxd7 {[%clk 00:09:47]} {[%emt 00:01:21]} Qxd7 {[%clk 00:15:36]} {[%emt
00:00:07]} 17. Rc1 {[%clk 00:09:29]} {[%emt 00:00:24]} a5 {[%clk 00:15:36]}
{[%emt 00:00:05]} 18. b3 {[%clk 00:09:10]} {[%emt 00:00:23]} Qd6 {[%clk
00:14:31]} {[%emt 00:01:09]} 19. Kh1 {[%clk 00:08:33]} {[%emt 00:00:44]} Qb4
{[%clk 00:14:30]} {[%emt 00:00:06]} 20. Rd3 {[%clk 00:07:56]} {[%emt 00:00:42]}
a4 {[%clk 00:14:19]} {[%emt 00:00:15]} 21. bxa4 {[%clk 00:04:20]} {[%emt
00:03:42]} Qxa4 {[%clk 00:14:21]} {[%emt 00:00:03]} 22. a3 {[%clk 00:03:41]}
{[%emt 00:00:44]} Bc4 {[%clk 00:14:11]} {[%emt 00:00:14]} 23. Rdc3 {[%clk
00:03:24]} {[%emt 00:00:23]} Qxd1+ 24. Rxd1 {[%clk 00:03:27]} b5 {[%clk
00:14:02]} {[%emt 00:00:11]} 25. f4 {[%clk 00:02:40]} {[%emt 00:00:52]} e6
{[%clk 00:13:48]} {[%emt 00:00:19]} 26. e5 {[%clk 00:02:32]} {[%emt 00:00:14]}
Ra6 {[%clk 00:13:49]} {[%emt 00:00:03]} 27. Bf1 {[%clk 00:02:30]} {[%emt
00:00:07]} Bxf1 {[%clk 00:12:39]} {[%emt 00:01:14]} 28. Rxf1 {[%clk 00:02:34]}
{[%emt 00:00:02]} Bf8 {[%clk 00:12:40]} {[%emt 00:00:04]} 29. Rfc1 {[%clk
00:01:15]} {[%emt 00:01:23]} Rc8 {[%clk 00:12:38]} {[%emt 00:00:07]} 30. Rb1
{[%clk 00:01:15]} {[%emt 00:00:05]} Rxa3 {[%clk 00:12:21]} {[%emt 00:00:22]} 31.
Rxa3 {[%clk 00:01:14]} {[%emt 00:00:07]} Bxa3 {[%clk 00:12:24]} {[%emt
00:00:02]} 32. Kg2 {[%clk 00:01:18]} Kf8 {[%clk 00:12:21]} {[%emt 00:00:08]} 33.
Kf3 {[%clk 00:01:22]} {[%emt 00:00:02]} Ke8 {[%clk 00:12:25]} {[%emt 00:00:01]}
34. Ke4 {[%clk 00:01:26]} {[%emt 00:00:01]} Kd7 {[%clk 00:12:28]} {[%emt
00:00:02]} 35. g4 {[%clk 00:01:27]} {[%emt 00:00:04]} Be7 {[%clk 00:11:31]}
{[%emt 00:01:02]} 36. f5 {[%clk 00:01:29]} {[%emt 00:00:03]} f6 {[%clk
00:10:54]} {[%emt 00:00:41]} 37. Ra1 {[%clk 00:01:04]} {[%emt 00:00:31]} b4
{[%clk 00:10:14]} {[%emt 00:00:44]} 38. Ra7+ {[%clk 00:00:55]} {[%emt
00:00:15]} Ke8 {[%clk 00:09:45]} {[%emt 00:00:34]} 39. fxe6 {[%clk 00:00:51]}
{[%emt 00:00:08]} fxe5 {[%clk 00:09:27]} {[%emt 00:00:23]} 40. Kxe5 {[%clk
00:00:41]} {[%emt 00:00:16]} Rb8 {[%clk 00:09:14]} {[%emt 00:00:17]} 41. Bc1
{[%clk 00:00:24]} {[%emt 00:00:23]} Rb5+ {[%clk 00:09:09]} {[%emt 00:00:09]} 42.
Ke4 {[%clk 00:00:28]} {[%emt 00:00:02]} h5 {[%clk 00:08:58]} {[%emt 00:00:16]}
43. Ra8+ {[%clk 00:00:31]} {[%emt 00:00:02]} Bd8 {[%clk 00:08:55]} {[%emt
00:00:08]} 44. Bf4 {[%clk 00:00:29]} {[%emt 00:00:07]} Ke7 {[%clk 00:08:23]}
{[%emt 00:00:36]} 45. Bc1 {[%clk 00:00:26]} {[%emt 00:00:09]} hxg4 {[%clk
00:08:10]} {[%emt 00:00:18]} 46. Rc8 {[%clk 00:00:24]} {[%emt 00:00:07]} Ba5
{[%clk 00:05:22]} {[%emt 00:02:53]} 47. Rxc6 {[%clk 00:00:23]} {[%emt
00:00:06]} b3 {[%clk 00:04:52]} {[%emt 00:00:34]} 48. Bb2 {[%clk 00:00:28]} Bb4
{[%clk 00:04:01]} {[%emt 00:00:58]} 49. d5 {[%clk 00:00:30]} {[%emt 00:00:02]}
Bd6 {[%clk 00:04:05]} 50. Ra6 {[%clk 00:00:27]} {[%emt 00:00:08]} Rb4+ {[%clk
00:04:06]} {[%emt 00:00:03]} 51. Kd3 {[%clk 00:00:29]} {[%emt 00:00:03]} Rb7
{[%clk 00:03:54]} {[%emt 00:00:18]} 52. Kc4 {[%clk 00:00:24]} {[%emt 00:00:10]}
Bxh2 {[%clk 00:03:44]} {[%emt 00:00:14]} 53. Ba3+ {[%clk 00:00:26]} {[%emt
00:00:04]} Kf6 {[%clk 00:03:17]} {[%emt 00:00:33]} 54. e7+ {[%clk 00:00:29]}
{[%emt 00:00:01]} Kf7 {[%clk 00:03:21]} {[%emt 00:00:01]} 55. Ra8 {[%clk
00:00:29]} {[%emt 00:00:05]} Rb8 {[%clk 00:03:19]} {[%emt 00:00:07]} 56. Rxb8
{[%clk 00:00:24]} {[%emt 00:00:10]} Bxb8 {[%clk 00:03:22]} {[%emt 00:00:01]} 57.
Kxb3 {[%clk 00:00:28]} {[%emt 00:00:02]} g3 {[%clk 00:03:22]} {[%emt 00:00:05]}
58. Bc5 {[%clk 00:00:28]} {[%emt 00:00:05]} g2 {[%clk 00:03:24]} {[%emt
00:00:03]} 59. Kc2 {[%clk 00:00:32]} {[%emt 00:00:02]} Bh2 {[%clk 00:03:15]}
{[%emt 00:00:13]} 60. Kd3 {[%clk 00:00:32]} {[%emt 00:00:04]} g1=Q {[%clk
00:03:12]} {[%emt 00:00:08]} 61. Bxg1 {[%clk 00:00:36]} {[%emt 00:00:02]} Bxg1
{[%clk 00:03:16]} {[%emt 00:00:01]} 62. Ke4 {[%clk 00:00:39]} {[%emt 00:00:02]}
Kxe7 {[%clk 00:03:15]} {[%emt 00:00:05]} 63. Kf4 {[%clk 00:00:42]} {[%emt
00:00:02]} Kf6 {[%clk 00:03:16]} {[%emt 00:00:04]} 0-1